{"text_format":"1","workbook":"xlsx","n_sheets":4,"sheets":["Лист1","Лист2","Лист3","Лист4"],"not_rendered":{"charts":0,"images":1,"macros":1,"external_links":0,"defined_names":16,"comments":0,"pivot_tables":0},"unopened":[],"bounds":{"document_bytes":16777216,"sheet_cells":100000,"rows_first":2000,"rows_last":500,"rows_between":2000,"halvings":0,"cell_chars":16384,"cell_head_chars":4096},"cells_cut":0,"cells_raw":0,"read":"whole","date_system":"1900"}

{"sheet":"Лист1","index":0,"n_rows":220,"n_cols":10,"rows_kept":220,"cut":false,"hidden":false,"merged":[[5,1,5,7],[0,0,1,5],[0,6,1,7]]}
[null,null,null,null,null,null,"сайт: www.delfin-pro.com                                    телефон: 8-920-838-60-65                               почта: vlad.palekhin@bk.ru"]
[]
[null,null,null,null,null,null,"Итого",{"$f":"SUM(H220,H7:H220)","v":0}]
["Категория","Артикул","Наименование","Цена опт","РРЦ","РРЦМП","Кол-во ","Рассчетная стоимость",0,0]
["Фонари",null,"Фонари",null,null,null,null,null,null,0]
["Фонари","При желании продажи фонаря в комплектации с АКБ и/или ЗУ суммируйте цены, приведённые в столбцах РРЦ или РРЦМП.",null,null,null,null,null,null,null,0]
["Фонари","F001W","Фонарь D7 (1200 люм, белый свет)",1210,1960,2255,null,{"$f":"D7*G7","v":0},0,0]
["Фонари","F001Y","Фонарь D7 (1200 люм, тепло-желтый свет) ",1210,1960,2255,null,0,0,0]
["Фонари","FH01W","Фонарь H1  (1200 люм, белый свет)",1490,2415,2880,null,0,0,0]
["Фонари","FH01Y","Фонарь H1 (1200 люм, тепло-желтый свет)",1490,2415,2880,null,0,0,0]
["Фонари","F102W","Фонарь L22 (1200 люм, белый свет) ",1600,2600,2720,null,0,0,0]
["Фонари","F102Y","Фонарь L22 (1200 люм, тепло-желтый свет) ",1600,2600,2720,null,0,0,0]
["Фонари","F027W","Фонарь R27 (3000 люм, белый свет)",2970,4900,5290,null,0,0,0]
["Фонари","F027Y","Фонарь R27 (3000 люм, желтый свет) ",2970,4900,5290,null,0,0,0]
["Фонари","F027MW","Фонарь R27 MAX (3000 люм, белый свет)                                                             ",3550,5750,6180,null,0,0,0]
["Фонари","F027MY","Фонарь R27 MAX (3000 люм, желтый свет)",3550,5750,6180,null,0,0,0]
["Фонари","FD01W","Фонарь RD1 (1200 люм, белый свет)",1490,2415,2780,null,0,0,0]
["Фонари","FD01Y","Фонарь RD1 (1200 люм, тепло-желтый свет) ",1490,2415,2780,null,0,0,0]
["Фонари","F010W","Фонарь RD2 (1200 люм, белый свет)                             ",2030,3300,3530,null,0,0,0]
["Фонари","F010Y","Фонарь RD2 (1200 люм, тепло-желтый свет)",2030,3300,3530,null,0,0,0]
["Фонари","F110W","Фонарь RD3 (1200 люм, белый свет)                                       ",2180,3550,3820,null,{"$f":"D21*G22","v":0},0,0]
["Фонари","F110Y","Фонарь RD3 (1200 люм, тепло-желтый свет) ",2180,3550,3820,null,{"$f":"D22*G23","v":0},0,0]
["Фонари","FD02W","Фонарь T15 (1200 люм, белый свет) ",2710,4390,4850,null,{"$f":"D23*G23","v":0},0,0]
["Фонари","FD02Y","Фонарь T15 (1200 люм, тепло-желтый свет)",2710,4390,4850,null,{"$f":"D24*G24","v":0},0,0]
["Фонари","F009W","Фонарь T25 (2500 люм, белый свет) ",2850,4620,4980,null,{"$f":"D25*G25","v":0},0,0]
["Фонари","F009Y","Фонарь T25 (2500 люм, тепло-желтый свет) ",2850,4620,4980,null,{"$f":"D26*G26","v":0},0,0]
["Кемпенговые фонари",null,"Кемпенговые фонари",null,null,null,null,null,null,0]
["Кемпенговые фонари","N004","Налобный фонарь B40 ( 1500 люм, белый свет)",1740,2850,3200,null,{"$f":"D28*G28","v":0},0,0]
["Аккумуляторы",null,"Аккумуляторы",null,null,null,null,null,null,0]
["Аккумуляторы","А005","Аккумулятор Kip «26650», С ЗАЩИТОЙ 5000mah",665,1080,1300,null,{"$f":"D30*G30","v":0},0,0]
["Аккумуляторы","А014","Аккумулятор LiitoKala «18650», БЕЗ ЗАЩИТОЙ, с вытянутым +, 3400мАч",365,580,700,null,0,0,0]
["Аккумуляторы","A004","Аккумулятор LiitoKala «18650», БЕЗ ЗАЩИТЫ, 3400мАч ",350,565,680,null,0,0,0]
["Аккумуляторы","A003","Аккумулятор LiitoKala «18650», С ЗАЩИТОЙ, 3400мАч ",375,605,730,null,0,0,0]
["Аккумуляторы","А006","Аккумулятор LiitoKala Lii-50A-JT «26650», БЕЗ ЗАЩИТЫ 5000mah ",425,690,830,null,0,0,0]
["Аккумуляторы","A007","Аккумулятор NCR21700T «21700», БЕЗ ЗАЩИТЫ 5100mah                  ",435,700,840,null,0,0,0]
["Зарядные устройства",null,"Зарядные устройства",null,null,null,null,null,null,0]
["Зарядные устройства","Z001","Зарядное устройство Liitokala «Lii-100B» ",370,600,720,null,{"$f":"D37*G37","v":0},0,0]
["Зарядные устройства","Z002","Зарядное устройство Liitokala «Lii-202» ",585,940,1130,null,0,0,0]
["Зарядные устройства","Z003","Зарядное устройство Liitokala «Lii-300» \n(нет в наличии)     ",1455,2355,2830,null,0,0,0]
["Зарядные устройства","Z004","Зарядное устройство Liitokala «Lii-402» ",825,1340,1610,null,0,0,0]
["Зарядные устройства","Z005","Зарядное устройство Liitokala «Lii-500» ",1810,2935,3530,null,0,0,0]
["Зарядные устройства","Z008","Зарядное устройство Liitokala «Lii-D4»                                                                                   ",950,1540,1850,null,0,0,0]
["Зарядные устройства","Z006","Зарядное устройство Liitokala «Lii-S2»  ",765,1240,1490,null,0,0,0]
["Зарядные устройства","Z007","Зарядное устройство Liitokala «Lii-S4»",1010,1640,1970,null,0,0,0]
["Аксессуары для фонаря и ружья",null,"Аксессуары для фонаря и ружья",null,null,null,null,null,null,0]
["Аксессуары для фонаря и ружья","UD1","Удлинитель для фонаря R27 MAX\nNEW",495,800,1000,null,{"$f":"D46*G46","v":0},1,0]
["Аксессуары для фонаря и ружья","KPP-01L","Компенсатор плавучести для фонаря (пенопласт) L                                                             ",300,500,690,null,0,0,0]
["Аксессуары для фонаря и ружья","KPP-01XL","Компенсатор плавучести для фонаря (пенопласт) XL                                                    ",300,500,690,null,0,0,0]
["Аксессуары для фонаря и ружья","KPK-01XL","Компенсатор плавучести для фонаря (пластик) XL",900,1440,1860,null,0,0,0]
["Аксессуары для фонаря и ружья","V002","Крепление на руку фонаря «универсальное» D28 ",415,670,905,null,0,0,0]
["Аксессуары для фонаря и ружья","V001","Крепление на руку фонаря «универсальное» D40 ",415,670,905,null,0,0,0]
["Аксессуары для фонаря и ружья","V003","Крепление фонаря на ружье (подствольное) с липучками                                ",220,360,490,null,0,0,0]
["Аксессуары для фонаря и ружья","MGA75659","Мотовило для гарпуна и линя (белое)                                                  ",300,500,690,null,0,0,0]
["Аксессуары для фонаря и ружья","MGA75656","Мотовило для гарпуна и линя (желтое)                                                    ",300,500,690,null,0,0,0]
["Аксессуары для фонаря и ружья","MGA75658","Мотовило для гарпуна и линя (зеленое)                                                  ",300,500,690,null,0,0,0]
["Аксессуары для фонаря и ружья","MGA75654","Мотовило для гарпуна и линя (красное)                                                  ",300,500,690,null,0,0,0]
["Аксессуары для фонаря и ружья","MGA75661","Мотовило для гарпуна и линя (лаймовое)                                             ",310,500,690,null,0,0,0]
["Аксессуары для фонаря и ружья","MGA75657","Мотовило для гарпуна и линя (оранжевое)                                             ",300,500,690,null,0,0,0]
["Аксессуары для фонаря и ружья","MGA75660","Мотовило для гарпуна и линя (синее)                                             ",300,500,690,null,0,0,0]
["Аксессуары для фонаря и ружья","MGA755651","Мотовило для гарпуна и линя (темно-зеленое)                                                  ",300,500,690,null,{"$f":"D60*G60","v":0},1,0]
["Аксессуары для фонаря и ружья","MGA75655","Мотовило для гарпуна и линя (черное)                                                    ",300,500,690,null,0,0,0]
["Аксессуары для фонаря и ружья","НП1","Наконечник пуля - 1 флажок ",580,940,1140,null,0,0,0]
["Аксессуары для фонаря и ружья","НП2","Наконечник пуля - 2 флажка                                                                                                             ",600,960,1150,null,0,0,0]
["Аксессуары для фонаря и ружья","НТ2","Наконечник трехгранный - 2 флажка                                                                                       ",600,960,1150,null,0,0,0]
["Маски, трубки",null,"Маски, трубки",null,null,null,null,null,null,0]
["Маски, трубки","MB01","Бокс под маску пластиковый                                                           ",285,460,560,null,{"$f":"D66*G66","v":0},0,0]
["Маски, трубки","M003","Маска Glance                                                                                           ",1170,1890,2270,null,0,0,0]
["Маски, трубки","M001","Маска Hunter black                                                  ",1055,1710,2060,null,0,0,0]
["Маски, трубки","M002","Маска Hunter green                                                                                 ",1055,1710,2060,null,0,0,0]
["Маски, трубки","M005","Маска Мinimal black",805,1280,1540,null,0,1,0]
["Маски, трубки","M006","Маска Мinimal white",805,1280,1540,null,0,1,0]
["Маски, трубки","M004","Маска Vision                                                                                             ",1200,1950,2340,null,0,0,0]
["Маски, трубки","T002","Трубка Air PRO зеленая ",485,790,950,null,0,0,0]
["Маски, трубки","Т004","Трубка Coral (с клапаном)",735,1190,1430,null,{"$f":"D74*G74","v":0},1,0]
["Маски, трубки","Т007","Трубка Okean белая \nNEW",440,790,950,null,0,1,0]
["Маски, трубки","Т006","Трубка Okean зеленая\nNEW",440,790,950,null,0,1,0]
["Маски, трубки","Т008","Трубка Okean мятная \nNEW",440,792,950,null,{"$f":"D77*G77","v":0},3,0]
["Маски, трубки","Т010","Трубка Okean розовая \nNEW",440,793,950,null,0,4,0]
["Маски, трубки","Т009","Трубка Okean синяя \nNEW",440,794,950,null,0,5,0]
["Маски, трубки","Т005","Трубк Okean черная \nNEW",440,795,950,null,0,6,0]
["Режущие инструменты",null,"Режущие инструменты",null,null,null,null,null,null,0]
["Режущие инструменты","NTP","Нож Talons PRO\nNEW",1800,3000,3600,null,{"$f":"D82*G82","v":0},1,0]
["Подводный компьютер",null,"Подводный компьютер",null,null,null,null,null,null,0]
["Подводный компьютер","AQ09W","Подводный компьютер NORTH EDGE - AQUA ",8840,14350,15500,null,0,0,0]
["Компенсаторы плавучести",null,"Компенсаторы плавучести",null,null,null,null,null,null,0]
["Компенсаторы плавучести",119840,"Гофра инфлятора компенсатора плавучести закруглённая, 40см",945,1530,1840,null,{"$f":"D86*G86","v":0},0,0]
["Компенсаторы плавучести",119830,"Гофра инфлятора компенсатора плавучести, 30см",830,1350,1620,null,0,0,0]
["Компенсаторы плавучести",119835,"Гофра инфлятора компенсатора плавучести, 35см",830,1350,1620,null,0,0,0]
["Компенсаторы плавучести",119841,"Гофра инфлятора компенсатора плавучести, 40см",945,1530,1840,null,0,0,0]
["Компенсаторы плавучести","BCD-181L","Компенсатор плавучести «SEA DELFIN» L",15660,25400,30480,null,0,0,0]
["Компенсаторы плавучести","BCD-181M","Компенсатор плавучести «SEA DELFIN» M",15660,25400,30480,null,0,0,0]
["Компенсаторы плавучести","BCD-181XL","Компенсатор плавучести «SEA DELFIN» XL ",15660,25400,30480,null,0,0,0]
["Компенсаторы плавучести","PC10157","Пряжка поясная, стальная                                                                                   ",320,520,630,null,0,0,0]
["Компенсаторы плавучести",114937,"Пульт инфлятора «K-STYLE»",2240,3630,4360,null,0,0,0]
["Компенсаторы плавучести",1025755,"Шланг поддува компенсатора плавучести, 55 см",1300,2080,2500,null,0,0,0]
["Компенсаторы плавучести",1025760,"Шланг поддува компенсатора плавучести, 60 см",1350,2160,2600,null,0,0,0]
["Компенсаторы плавучести",1025770,"Шланг поддува компенсатора плавучести, 70 см",1450,2320,2790,null,0,0,0]
["Компенсаторы плавучести",1025780,"Шланг поддува компенсатора плавучести, 80 см",1550,2480,2980,null,0,0,0]
["Компенсаторы плавучести",1025790,"Шланг поддува компенсатора плавучести, 90 см",1650,2640,3170,null,0,0,0]
["Компенсаторы плавучести",10257100,"Шланг поддува компенсатора плавучести, 100 см",1750,2800,3360,null,{"$f":"D100*G100","v":0},1,0]
["Компенсаторы плавучести",10257110,"Шланг поддува компенсатора плавучести, 110 см",1850,2960,3560,null,0,2,0]
["Регуляторы",null,"Регуляторы",null,null,null,null,null,null,0]
["Регуляторы","MO24132","AKUANA Манометр Hippo 1 ",4100,6560,7870,null,{"$f":"D103*G103","v":0},0,0]
["Регуляторы","MО24133","AKUANA Манометр Hippo 2                                        ",4370,7000,8400,null,0,0,0]
["Регуляторы","CBE0215","AKUANA Октопус Falconet 2",11100,17760,21310,null,0,0,0]
["Регуляторы","CC05266","AKUANA Регулятор  вторая ступень  Falconet 2 черная  ",8850,14160,16990,null,0,0,0]
["Регуляторы","CB22612","AKUANA Регулятор первая ступень  Falcon 3",10550,16880,20250,null,0,0,0]
["Регуляторы","RM22612","AKUANA Ремкомплект 1-й ступени Falcon 2 ice version ",1700,2700,3240,null,0,0,0]
["Регуляторы","RM22615","AKUANA Ремкомплект 1-й ступени Falcon 3",1700,2700,3240,null,0,0,0]
["Регуляторы","RM22622","AKUANA Ремкомплект 2-й ступени Falconet 2",1700,2700,3240,null,0,0,0]
["Регуляторы","CE15161","AKUANA Шланг резиновый  ко 2-ой ступени регулятора 61 см.  ",2100,3350,4020,null,0,0,0]
["Регуляторы","ZAR05","Загубник анатомический для регулятора, черный ",255,420,510,null,0,0,0]
["Регуляторы","SI-183B","Загубник анатомический для регулятора, черный V2 ",490,790,950,null,0,0,0]
["Регуляторы","TK03","О-ринг DIN регулятора",40,70,84,null,0,0,0]
["Регуляторы","TK02","О-ринг вентиля",51,90,108,null,0,0,0]
["Регуляторы","TK05","О-ринги нипеля для манометретра «HP»",37,60,72,null,0,0,0]
["Регуляторы","TK06","О-ринги шланга ко 2-ой ступени регулятора",40,70,84,null,0,0,0]
["Регуляторы","TK04","О-ринги шланга манометретра «HP»",37,60,72,null,0,0,0]
["Регуляторы","CE15245","Шланг манометра резиновый с нейлоновой оплеткой «HP» 15 см  ",1895,3035,3650,null,0,0,0]
["Регуляторы","CE15246","Шланг манометра резиновый с нейлоновой оплеткой «HP» 60 см",2645,4235,5090,null,0,0,0]
["Регуляторы","CE15247","Шланг манометра резиновый с нейлоновой оплеткой «HP» 70 см",2835,4540,5450,null,0,0,0]
["Регуляторы","CE15248","Шланг манометра резиновый с нейлоновой оплеткой «HP» 80 см",3390,5430,6520,null,0,0,0]
["Аксессуары к баллону",null,"Аксессуары к баллону",null,null,null,null,null,null,0]
["Аксессуары к баллону","VDIN-34М","Вентиль баллона DIN 3/4, 250 BAR, 3500 psi c YOKE-вкруткой                          ",3150,5050,6060,null,{"$f":"D124*G124","v":0},0,0]
["Аксессуары к баллону","VDIN-252М","Вентиль баллона DIN М25х2, 250 BAR, 3500 psi c YOKE-вкруткой                    ",3150,5050,6060,null,0,0,0]
["Аксессуары к баллону","Cl05","Карабин двусторонний «120x25», нержавеющий                                                   ",425,680,820,null,0,0,0]
["Аксессуары к баллону","AS18450","Карабин с поворотным кольцом, 120                                                               ",340,550,660,null,0,0,0]
["Аксессуары к баллону","ОС010","Обвязка стейдж-баллона\n(нет в наличии)                                                                                               ",2590,4150,4980,null,0,0,0]
["Аксессуары к баллону","РV1","Ручка баллона для дайвинга, пластиковая V1                                                        ",590,950,1200,null,0,0,0]
["Аксессуары к баллону","РV2","Ручка баллона для дайвинга, пластиковая V2                                                        ",950,1400,1200,null,0,0,0]
["Компасы",null,"Компасы",null,null,null,null,null,null,0]
["Компасы","K054Y","Компас подводный на бандже AOFAR «AF-Q60» (жёлтый)",1310,2110,2530,null,{"$f":"D132*G132","v":0},0,0]
["Компасы","K054","Компас подводный на бандже AOFAR «AF-Q60» (серый)",1310,2110,2530,null,{"$f":"D133*G133","v":0},0,0]
["Компасы","K054S","Компас подводный на бандже AOFAR «AF-Q60» (синий)",1310,2110,2530,null,{"$f":"D134*G134","v":0},0,0]
["Компасы","K054B","Компас подводный на бандже AOFAR «AF-Q60» (черный)",1310,2110,2530,null,{"$f":"D135*G135","v":0},0,0]
["Ласты",null,"Ласты",null,null,null,null,null,null,0]
["Ласты","486477D","Держатели ласт, резиновые 36-37 ",400,640,770,null,{"$f":"D137*G137","v":0},0,0]
["Ласты","KF4344","Калоши ласт Flow L (43-44) ",3400,5780,6935,null,{"$f":"D138*G138","v":0},null,0]
["Ласты","KF4546","Калоши ласт Flow XL (45-46)",3400,5780,6935,null,0,null,0]
["Ласты","KL4445","Калоши ласт Long (длинные усики) 44-45                                                      ",3910,6260,7510,null,0,0,0]
["Ласты","KL4647","Калоши ласт Long (длинные усики) 46-47   ",3910,6260,7510,null,0,0,0]
["Ласты","KL4850","Калоши ласт Long (длинные усики) 48-50  ",4230,6760,8110,null,0,0,0]
["Ласты","KS3637","Калоши ласт Short 36-37                                                                                     ",3910,6260,7510,null,0,0,0]
["Ласты","KS3839","Калоши ласт Short 38-39                                                                                       ",3910,6260,7510,null,0,0,0]
["Ласты","KS4041","Калоши ласт Short 40-41                                                                                       ",3910,6260,7510,null,0,0,0]
["Ласты","KS4243","Калоши ласт Short 42-43                                      ",3910,6260,7510,null,0,0,0]
["Ласты","KS4445","Калоши ласт Short 44-45                                                                                       ",3910,6260,7510,null,0,0,0]
["Ласты","KS4447","Калоши ласт Short 46-47                                ",3910,6260,7510,null,0,0,0]
["Ласты","KS4450","Калоши ласт Short 48-50                                                                                     ",4700,7050,8460,null,0,0,0]
["Ласты","KS3637","Ласты «SHORT FIN», сменные лопасти 36-37",4640,7430,8920,null,0,0,0]
["Ласты","KS3839","Ласты «SHORT FIN», сменные лопасти 38-39",4640,7430,8920,null,0,0,0]
["Ласты","589411K ","Ласты «SHORT FIN», сменные лопасти 40-41",4640,7430,8920,null,0,0,0]
["Ласты","589433K","Ласты «SHORT FIN», сменные лопасти 42-43",4640,7430,8920,null,0,0,0]
["Ласты","589455K","Ласты «SHORT FIN», сменные лопасти 44-45",4640,7430,8920,null,0,0,0]
["Ласты","589477K","Ласты «SHORT FIN», сменные лопасти 46-47",4640,7430,8920,null,0,0,0]
["Ласты","589488K","Ласты «SHORT FIN», сменные лопасти 48-50",5140,8220,8920,null,0,0,0]
["Ласты","532133L","Ласты Long FIN, длинные 42-43 ",2500,4000,4800,null,0,0,0]
["Ласты","FIN-191G","Ласты для дайвинга «AQUANTUM» белые, 45-47 (Giant)",3920,6340,7610,null,0,0,0]
["Ласты","FIN-191SB","Ласты для дайвинга «AQUANTUM» черные, 36-40 (Smil)",3920,6340,7610,null,0,0,0]
["Ласты","FIN-191RB","Ласты для дайвинга «AQUANTUM» черные, 41-44 (Regular)",3920,6340,7610,null,0,0,0]
["Ласты","FIN-191GB","Ласты для дайвинга «AQUANTUM» черные, 45-47 (Giant)",3920,6340,7610,null,0,0,0]
["Ласты","486126KJSS","Лопасти карбоновые J, ULTRA SOFT, 26 градусов  ",9330,17500,21000,null,0,0,0]
["Ласты","486126KJS","Лопасти карбоновые J, SOFT, 26 градусов  ",9330,17500,21000,null,0,0,0]
["Ласты","486126KJM","Лопасти карбоновые J, MEDIUM, 26 градусов ",9330,17500,21000,null,0,0,0]
["Ласты","486126KJMH","Лопасти карбоновые J, MEDIUM-HARD, 26 градусов                                                ",9330,17500,21000,null,0,0,0]
["Ласты","486126KJH","Лопасти карбоновые J, HARD, 26 градусов",9330,17500,21000,null,0,1,0]
["Ласты","486126W","Отбортовка одной лопасти 75 см, белай",400,640,770,null,{"$f":"D167*G167","v":0},1,0]
["Ласты","486126B","Отбортовка одной лопасти 75 см, черная",400,640,770,null,{"$f":"D168*G168","v":0},1,0]
["Ласты","11193L","Пружины на ласты для дайвинга, пара р-р L",2070,3310,3980,null,{"$f":"D169*G169","v":0},0,0]
["Ласты","11193M","Пружины на ласты для дайвинга, пара р-р M ",2070,3310,3980,null,0,0,0]
["Ласты","11193S","Пружины на ласты для дайвинга, пара р-р S ",2070,3310,3980,null,0,0,0]
["Ласты","RLR02","Ремешки с пряжками для дайверских ласт, резиновые (пара)                          ",800,1300,1560,null,0,0,0]
["Боты",null,"Боты",null,null,null,null,null,null,0]
["Боты","BOOT-35X5","Боты «YON SUB X5», неопрен 5мм на молнии р.35 (S4)\n(нет в наличии)                              ",2200,3540,3840,null,{"$f":"D174*G174","v":0},0,0]
["Боты","BOOT-36X5","Боты «YON SUB X5», неопрен 5мм на молнии р.36-37 (S5)\n(нет в наличии)                               ",2200,3540,3840,null,{"$f":"D175*G175","v":0},0,0]
["Боты","BOOT-37X5","Боты «YON SUB X5», неопрен 5мм на молнии р.37-38 ( S6)                        ",2200,3540,3840,null,0,0,0]
["Боты","BOOT-39X5","Боты «YON SUB X5», неопрен 5мм на молнии р.39 (S7) \n(нет в наличии)                                                             ",2200,3540,3840,null,0,0,0]
["Боты","BOOT-40X5","Боты «YON SUB X5», неопрен 5мм на молнии р.40-41 (S8) ",2200,3540,3840,null,0,0,0]
["Боты","BOOT-42X5","Боты «YON SUB X5», неопрен 5мм на молнии р..42 (S9) ",2200,3540,3840,null,0,0,0]
["Боты","BOOT-43X5","Боты «YON SUB X5», неопрен 5мм на молнии р. 43-44 (S10) ",2200,3540,3840,null,0,0,0]
["Боты","BOOT-45X5","Боты «YON SUB X5», неопрен 5мм на молнии р. 45 (S11) ",2200,3540,3840,null,0,0,0]
["Боты","BOOT-46X5","Боты «YON SUB X5», неопрен 5мм на молнии р.46-47 (S12)",2200,3540,3840,null,0,0,0]
["Сумки",null,"Сумки",null,null,null,null,null,null,0]
["Сумки","STH-002","Сумка AKUANA  водонепроницаемая  ",2670,4300,5160,null,{"$f":"D184*G184","v":0},0,0]
["Сумки","SАBW-001 ","Сумка DELFiN водонепроницаемая  для снаряжения «Aqua» 100л, желтая   ",2290,3670,4400,null,{"$f":"D185*G185","v":0},0,0]
["Сумки","SАBG-002","Сумка DELFiN водонепроницаемая  для снаряжения «Aqua» 100л, зелёная  ",2290,3670,4400,null,{"$f":"D186*G186","v":0},0,0]
["Сумки","SАSW-001","Сумка DELFiN водонепроницаемая  для снаряжения «Aqua» 65л, желтая     ",2250,3600,4320,null,{"$f":"D187*G187","v":0},0,0]
["Аксессуары для фридайвинга",null,"Аксессуары для фридайвинга",null,null,null,null,null,null,0]
["Аксессуары для фридайвинга","Nl502","Зажим для фридайвинга пластиковый желтый",550,880,1060,null,{"$f":"D189*G189","v":0},null,0]
["Аксессуары для фридайвинга","Nl501","Зажим для фридайвинга пластиковый зеленый",550,880,1060,null,0,null,0]
["Аксессуары для фридайвинга","Nl503","Зажим для фридайвинга пластиковый красный",550,880,1060,null,0,null,0]
["Аксессуары для фридайвинга","Nl504","Зажим для фридайвинга пластиковый черный",550,880,1060,null,0,null,0]
["Аксессуары для фридайвинга","DO345","Лайнер страховочный с карабином оранжевый",1410,2260,2700,null,{"$f":"D193*G193","v":0},0,0]
["Аксессуары для фридайвинга","DR345","Лайнер страховочный с карабином розовый",1410,2260,2700,null,{"$f":"D194*G194","v":0},0,0]
["Аксессуары для фридайвинга","DS345","Лайнер страховочный с карабином синий",1410,2260,2700,null,{"$f":"D195*G195","v":0},0,0]
["Аксессуары для фридайвинга","DB345","Лайнер страховочный с карабином черный",1410,2260,2700,null,{"$f":"D196*G196","v":0},0,0]
["Лента поясная (стропа), венгерка",null,"Лента поясная (стропа), венгерка",null,null,null,null,null,null,0]
["Лента поясная (стропа), венгерка","BK-172Y","Лента поясная кордуровая (желтая 23 м)",5600,8960,10750,null,{"$f":"D198*G198","v":0},0,0]
["Лента поясная (стропа), венгерка","BK-172RE","Лента поясная кордуровая (красная 23 м)\n(нет в наличии)       ",5600,8960,10750,null,0,0,0]
["Лента поясная (стропа), венгерка","BK-172N","Лента поясная кордуровая (лаймовая 23 м)",5600,8960,10750,null,0,0,0]
["Лента поясная (стропа), венгерка","WB56R","Лента поясная кордуровая (розовая 25 м)",5600,8960,10750,null,0,0,0]
["Лента поясная (стропа), венгерка","BK-172BL","Лента поясная кордуровая (черная 23 м)",4500,7200,8640,null,0,0,0]
["Лента поясная (стропа), венгерка",1316,"Шнур резиновый «ВЕНГЕРКА 3мм», белая, 1 м",30,48,57.599999999999994,null,0,0,0]
["Лента поясная (стропа), венгерка",1313,"Шнур резиновый «ВЕНГЕРКА 3мм», зеленый, 1 м",30,48,57.599999999999994,null,0,0,0]
["Лента поясная (стропа), венгерка",1314,"Шнур резиновый «ВЕНГЕРКА 3мм», красный, 1 м",30,48,57.599999999999994,null,0,0,0]
["Лента поясная (стропа), венгерка",1315,"Шнур резиновый «ВЕНГЕРКА 3мм», розовый, 1 м",30,48,57.599999999999994,null,0,0,0]
["Лента поясная (стропа), венгерка",1312,"Шнур резиновый «ВЕНГЕРКА 3мм», синий, 1 м",30,48,57.599999999999994,null,0,0,0]
["Лента поясная (стропа), венгерка",1311,"Шнур резиновый «ВЕНГЕРКА 3мм», черный, 1 м",30,48,57.599999999999994,null,0,0,0]
["Лента поясная (стропа), венгерка",1416,"Шнур резиновый «ВЕНГЕРКА 4мм», белая, 1 м",38,60,72,null,0,0,0]
["Лента поясная (стропа), венгерка",1413,"Шнур резиновый «ВЕНГЕРКА 4мм», зеленый, 1 м",38,60,72,null,0,0,0]
["Лента поясная (стропа), венгерка",1414,"Шнур резиновый «ВЕНГЕРКА 4мм», красный, 1 м",38,60,72,null,0,0,0]
["Лента поясная (стропа), венгерка",1415,"Шнур резиновый «ВЕНГЕРКА 4мм», розовый, 1 м",38,60,72,null,0,0,0]
["Лента поясная (стропа), венгерка",1412,"Шнур резиновый «ВЕНГЕРКА 4мм», синий, 1 м",38,60,72,null,0,0,0]
["Лента поясная (стропа), венгерка",1411,"Шнур резиновый «ВЕНГЕРКА 4мм», черный, 1 м",38,60,72,null,0,0,0]
["Лента поясная (стропа), венгерка",1516,"Шнур резиновый «ВЕНГЕРКА 5мм», белая, 1 м",78,125,150,null,0,0,0]
["Лента поясная (стропа), венгерка",1513,"Шнур резиновый «ВЕНГЕРКА 5мм», зеленый, 1 м",78,125,150,null,0,0,0]
["Лента поясная (стропа), венгерка",1514,"Шнур резиновый «ВЕНГЕРКА 5мм», красный, 1 м",78,125,150,null,0,0,0]
["Лента поясная (стропа), венгерка",1515,"Шнур резиновый «ВЕНГЕРКА 5мм», розовый, 1 м",78,125,150,null,0,0,0]
["Лента поясная (стропа), венгерка",1512,"Шнур резиновый «ВЕНГЕРКА 5мм», синий, 1 м",78,125,150,null,0,0,0]
["Лента поясная (стропа), венгерка",1511,"Шнур резиновый «ВЕНГЕРКА 5мм», черный, 1 м",78,125,150,null,0,0,0]

{"sheet":"Лист2","index":1,"n_rows":23,"n_cols":9,"rows_kept":23,"cut":false,"hidden":false,"merged":[[0,0,1,4],[0,5,1,5],[5,1,5,6],[3,6,3,8],[0,6,1,8],[3,3,3,5]]}
[null,null,null,null,null,null,"сайт: www.delfin-pro.com                                    телефон: 8-920-838-60-65                               почта: vlad.palekhin@bk.ru"]
[]
[]
["Категория","Наименование","Цена опт  ","РРЦ",null,null,"РРЦМП"]
["Фонари","Фонари",null,null,"комплект с акб","комплект с акб и зу",null,"комплект с акб","комплект с акб и зу"]
["Фонари","При желании продажи фонаря в комплектации с АКБ и/или ЗУ суммируйте цены, приведённые в столбцах РРЦ или РРЦМП."]
["Фонари","Фонарь DELFiN D7",{"$f":"Лист1!D8","v":1210},{"$f":"Лист1!E7","v":1960},{"$f":"D18+D7","v":2650},{"$f":"D7+D18+D22","v":3250},{"$f":"Лист1!F7","v":2255},{"$f":"G7+G18","v":3085},{"$f":"G22+H7","v":3805}]
["Фонари","Фонарь DELFiN H1",{"$f":"Лист1!D10","v":1490},{"$f":"Лист1!E9","v":2415},{"$f":"D20+D8","v":2995},{"$f":"D8+D20+D22","v":3595},{"$f":"Лист1!F9","v":2880},{"$f":"G8+G20","v":3580},{"$f":"H8+G22","v":4300}]
["Фонари","Фонарь DELFiN L22",{"$f":"Лист1!D12","v":1600},{"$f":"Лист1!E11","v":2600},{"$f":"D9+D20+D20","v":3760},{"$f":"E9+D23","v":4700},{"$f":"Лист1!F11","v":2720},{"$f":"G9+G20+G20","v":4120},{"$f":"H9+G23","v":5250}]
["Фонари","Фонарь DELFiN R27",{"$f":"Лист1!D14","v":2970},{"$f":"Лист1!E13","v":4900},{"$f":"D10+D18+D18","v":6280},{"$f":"E10+D23","v":7220},{"$f":"Лист1!F13","v":5290},{"$f":"G10+G18+G18","v":6950},{"$f":"H10","v":6950}]
["Фонари","Фонарь DELFiN R27 MAX                    ",{"$f":"Лист1!D16","v":3550},{"$f":"Лист1!E15","v":5750},{"$f":"D11+D18+D18+D18","v":7820},{"$f":"E11+D23","v":8760},{"$f":"Лист1!F15","v":6180},{"$f":"G11+G18+G18+G18","v":8670},{"$f":"H11+G23","v":9800}]
["Фонари","Фонарь DELFiN RD1",{"$f":"Лист1!D18","v":1490},{"$f":"Лист1!E17","v":2415},{"$f":"D12+D20","v":2995},{"$f":"E12+D22","v":3595},{"$f":"Лист1!F17","v":2780},{"$f":"G12+G20","v":3480},{"$f":"H12+G22","v":4200}]
["Фонари","Фонарь DELFiN RD2",{"$f":"Лист1!D20","v":2030},{"$f":"Лист1!E20","v":3300},{"$f":"D13+D20+D20","v":4460},{"$f":"E13+D23","v":5400},{"$f":"Лист1!F20","v":3530},{"$f":"G13+G20+G20","v":4930},{"$f":"H13+G23","v":6060}]
["Фонари","Фонарь DELFiN RD3",{"$f":"Лист1!D22","v":2180},{"$f":"Лист1!E21","v":3550},{"$f":"D14+D19+D19","v":4950},{"$f":"E14+D23","v":5890},{"$f":"Лист1!F21","v":3820},{"$f":"G14+G19+G19","v":5500},{"$f":"H14+G23","v":6630}]
["Фонари","Фонарь DELFiN T15",{"$f":"Лист1!D24","v":2710},{"$f":"Лист1!E24","v":4390},{"$f":"D15+D20","v":4970},{"$f":"E15+D22","v":5570},{"$f":"Лист1!F23","v":4850},{"$f":"G15+G20","v":5550},{"$f":"H15+G22","v":6270}]
["Фонари","Фонарь DELFiN T25",{"$f":"Лист1!D26","v":2850},{"$f":"Лист1!E26","v":4620},{"$f":"D16+D18+D18","v":6000},{"$f":"E16+D23","v":6940},{"$f":"Лист1!F26","v":4980},{"$f":"G16+G18+G18","v":6640},{"$f":"H16+G23","v":7770}]
[null,"Аккумуляторы"]
["Аккумуляторы","Аккумулятор LiitoKala Lii-50A-JT «26650», БЕЗ ЗАЩИТЫ 5000mah ",{"$f":"Лист1!D34","v":425},{"$f":"Лист1!E34","v":690},null,null,{"$f":"Лист1!F34","v":830}]
["Аккумуляторы","Аккумулятор LiitoKala Lii-50E-JT «21700», БЕЗ ЗАЩИТЫ 5000mah                  ",{"$f":"Лист1!D35","v":435},{"$f":"Лист1!E35","v":700},null,null,{"$f":"Лист1!F35","v":840}]
["Аккумуляторы","Аккумулятор LiitoKala «18650», БЕЗ ЗАЩИТОЙ, с вытянутым +, 3400мАч",{"$f":"Лист1!D31","v":365},{"$f":"Лист1!E31","v":580},null,null,{"$f":"Лист1!F31","v":700}]
["Зарядные устройства","Зарядные устройства"]
["Зарядные устройства","Зарядное устройство Liitokala «Lii-100B» ",{"$f":"Лист1!D37","v":370},{"$f":"Лист1!E37","v":600},null,null,{"$f":"Лист1!F37","v":720}]
["Зарядные устройства","Зарядное устройство Liitokala «Lii-202»",{"$f":"Лист1!D38","v":585},{"$f":"Лист1!E38","v":940},null,null,{"$f":"Лист1!F38","v":1130}]

{"sheet":"Лист3","index":2,"n_rows":0,"n_cols":0,"rows_kept":0,"cut":false,"hidden":false,"merged":[]}

{"sheet":"Лист4","index":3,"n_rows":0,"n_cols":0,"rows_kept":0,"cut":false,"hidden":false,"merged":[]}